fUST/lending_fUST_20240513
["ID","MTS","AMOUNT","RATE_DAILY","PERIOD"]
[326887323,1715542245299,-494.0,0.00055195,120]
[326887324,1715542245308,-150.0,0.00055195,120]
[326887325,1715542245318,-500.0,0.0005589,2]
[326887326,1715542245326,-500.0,0.0005589,120]
[326887327,1715542245335,-500.0,0.0005589,120]
[326887328,1715542245345,-500.0,0.0005589,120]
[326887329,1715542245355,-500.0,0.0005589,120]
[326887330,1715542245364,-330.32,0.0005589,120]
[326887332,1715542245373,-1482.08,0.0005589,120]
[326887334,1715542245383,-500.0,0.0005589,120]
[326887336,1715542245392,-500.0,0.0005589,21]
[326887338,1715542245402,-500.0,0.0005589,120]
[326887340,1715542245412,-500.0,0.0005589,120]
[326887342,1715542245422,-377.73,0.00056986,2]
[326887344,1715542245431,-500.0,0.00056986,120]
[326887346,1715542245443,-500.0,0.00056986,120]
[326887348,1715542245453,-500.0,0.00056986,120]
[326887350,1715542245463,-500.0,0.00056986,120]
[326887352,1715542245472,-1482.08,0.00056986,120]
[326887354,1715542245483,-500.0,0.00056986,120]
[326887355,1715542245492,-500.0,0.00056986,21]
[326887357,1715542245501,-500.0,0.00056986,120]
[326887359,1715542245510,-500.0,0.00056986,120]
[326887361,1715542245519,-500.0,0.00058082,120]
[326887363,1715542245530,-500.0,0.00058082,120]
[326887365,1715542245540,-500.0,0.00058082,120]
[326887367,1715542245549,-505.3624598,0.00058082,120]
[326887369,1715542245559,-1482.08,0.00058082,120]
[326887371,1715542245568,-244.63353297,0.00058082,120]
[326887373,1715542245578,-214.92914202,0.00058082,21]
[326887375,1715542245587,-500.0,0.00058082,120]
[326887377,1715542245596,-583.39206347,0.00058082,120]
[326887379,1715542245605,-150.0,0.00058195,120]
[326887381,1715542245614,-500.0,0.00059178,120]
[326887383,1715542245623,-500.0,0.00059178,120]
[326887385,1715542245632,-500.0,0.00059178,120]
[326887387,1715542245641,-1482.08,0.00059178,120]
[326887388,1715542245650,-500.0,0.00059178,120]
[326887390,1715542245659,-186.164175,0.0005938,2]
[326887392,1715542245668,-160.0,0.0006,60]
[326887394,1715542245677,-500.0,0.00060273,120]
[326887396,1715542245686,-305.07892557,0.00060273,120]
[326887398,1715542245696,-500.0,0.00060273,120]
[326887400,1715542245705,-1482.08,0.00060273,120]
[326887402,1715542245715,-500.0,0.00060273,120]
[326887404,1715542245725,-500.0,0.00061369,120]
[326887406,1715542245734,-500.0,0.00061369,120]
[326887408,1715542245744,-1482.08,0.00061369,120]
[326887410,1715542245754,-500.0,0.00061369,120]
[326887412,1715542245763,-268.99650515,0.00061369,2]
[326887414,1715542245773,-500.0,0.00062465,120]
[326887416,1715542245782,-635.81295216,0.00062465,120]
[326887418,1715542245792,-1482.08,0.00062465,120]
[326887420,1715542245802,-500.0,0.00062465,120]
[326887422,1715542245812,-500.0,0.00063561,120]
[326887424,1715542245821,-1482.08,0.00063561,120]
[326887426,1715542245831,-500.0,0.00063561,120]
[326887428,1715542245840,-500.0,0.00064657,120]
[326887430,1715542245850,-1482.08,0.00064657,120]
[326887432,1715542245860,-500.0,0.00064657,120]
[326887434,1715542245869,-255.69577472,0.00065093,7]
[326887436,1715542245878,-186.164175,0.0006535,2]
[326887438,1715542245888,-500.0,0.00065753,120]
[326887440,1715542245897,-1482.08,0.00065753,120]
[326887442,1715542245907,-500.0,0.00065753,120]
[326887444,1715542245917,-500.0,0.00066849,120]
[326887446,1715542245926,-1482.08,0.00066849,120]
[326887448,1715542245936,-500.0,0.00066849,120]
[326887450,1715542245946,-462.25452441,0.00067945,120]
[326887452,1715542245955,-1482.08,0.00067945,120]
[326887454,1715542245964,-500.0,0.00067945,120]
[326887456,1715542245974,-1482.08,0.00069041,120]
[326887458,1715542245984,-500.0,0.00069041,120]
[326887460,1715542245994,-606.12230619,0.0007,7]
[326887462,1715542246003,-1482.08,0.00070136,120]
[326887464,1715542246013,-500.0,0.00070136,120]
[326887466,1715542246022,-1482.08,0.00071232,120]
[326887468,1715542246032,-500.0,0.00071232,120]
[326887470,1715542246041,-186.164175,0.00071319,120]
[326887472,1715542246051,-156.15873807,0.00072326,7]
[326887474,1715542246061,-247.7307444,0.00072326,7]
[326887476,1715542246070,-156.00741157,0.00072326,7]
[326887477,1715542246079,-154.72150438,0.00072326,7]
[326887479,1715542246089,-662.85805754,0.00072326,30]
[326887481,1715542246098,-156.37624247,0.00072326,7]
[326887483,1715542246107,-233.60974824,0.00072326,7]
[326887494,1715542246205,-193.9449799,0.00072326,7]
[326887496,1715542246215,-156.73876964,0.00072327,7]
[326887498,1715542246224,-1712.9168005,0.00072327,7]
[326887500,1715542246234,-289.33641641,0.00072327,7]
[326887502,1715542246244,-155.69406439,0.00072327,7]
[326887504,1715542246254,-1482.08,0.00072328,120]
[326887506,1715542246264,-500.0,0.00072328,120]
[326887508,1715542246273,-1482.08,0.00073424,120]
[326887510,1715542246283,-500.0,0.00073424,120]
[326887512,1715542246293,-1482.08,0.0007452,120]
[326887514,1715542246303,-500.0,0.0007452,120]
[326887516,1715542246312,-1482.08,0.00075616,120]
[326887518,1715542246321,-500.0,0.00075616,120]
[326887520,1715542246330,-1482.08,0.00076712,120]
[326887522,1715542246339,-500.0,0.00076712,120]
[326887523,1715542246349,-186.164175,0.00077289,120]
[326887525,1715542246359,-1482.08,0.00077808,120]
[326887527,1715542246368,-500.0,0.00077808,120]
[326887529,1715542246377,-1482.08,0.00078904,120]
[326887531,1715542246387,-500.0,0.00078904,120]
[326887533,1715542246396,-303.9776338,0.00079078,60]
[326887535,1715542246406,-281.0,0.0008,40]
[326887537,1715542246415,-170.327115,0.0008,2]
[326887539,1715542246425,-1482.24162554,0.0008,120]
[326887541,1715542246434,-479.6242768,0.0008,120]
[326887543,1715542246447,-166.849343,0.00080274,120]
[326887545,1715542246456,-1000.0,0.00081365,120]
[326887547,1715542246465,-151.0,0.00082521,120]
[326887549,1715542246475,-186.164175,0.00083259,120]
[326887551,1715542246485,-52173.88736229,0.0008888,30]
[326887553,1715542246495,-200000.0,0.00089,120]
[326887554,1715542246504,-186.164175,0.00089229,120]
[326887556,1715542246514,-302.0,0.00090027,120]
[326887558,1715542246524,-172.72599557,0.0009105,9]
[326887560,1715542246533,-165.4443,0.00091616,120]
[326887562,1715542246543,-200000.0,0.00092,120]
[326887564,1715542246552,-176.01,0.00094399,60]
[326887566,1715542246561,-176.01,0.00094399,60]
[326887568,1715542246570,-176.01,0.00094399,60]
[326887570,1715542246580,-98602.1173,0.000944,120]
[326887572,1715542246588,-145876.33301947,0.00095,120]
[326888533,1715542256710,154.73694719,0.00027633,2]
[326889385,1715542287951,172.0,0.0003,2]
[326889386,1715542320658,171.803576,0.00023562,2]
[326889387,1715542325219,154.73694719,0.0003,4]
[326889388,1715542343225,284.82351388,0.0003,4]
[326889389,1715542346911,7886.43652278,0.00020913,2]
[326889390,1715542349294,155.08065082,0.00035833,4]
[326889391,1715542411357,238.51524987,0.00020913,2]
[326889393,1715542919590,447.34798474,0.00020913,2]
[326889400,1715543157171,-164.49075395,0.00023516,2]
[326889401,1715543157191,-612.19840253,0.00023528,2]
[326889402,1715543187871,238.51524987,0.00020913,2]
[326889403,1715543192914,2468.15177422,0.00021428,2]
[326889404,1715543238137,-250.0,0.00023253,2]
[326889405,1715543238157,-389.29787737,0.00023528,2]
[326889406,1715543238179,-164.930885,0.00023562,2]
[326889407,1715543238213,-583.5429188,0.00023585,2]
[326889408,1715543238236,-166.666666,0.00023616,2]
[326889409,1715543238259,-2589.85960352,0.000244,2]
[326889410,1715543238280,-548.104723,0.00024884,2]
[326889411,1715543238302,-15304.58837675,0.00025112,2]
[326889414,1715543355131,-170.172172,0.00023562,2]
[326889415,1715543355152,-156.36462238,0.00024289,2]
[326889416,1715543355173,-238.51524987,0.00025111,2]
[326889417,1715543355195,-9595.41162325,0.00025112,2]
[326889418,1715543355215,-2468.15177422,0.00026428,2]
[326889419,1715543355243,-2042.43433402,0.000266,2]
[326889420,1715543355262,-719.26262996,0.00026889,2]
[326889421,1715543355282,-164.49075395,0.0002689,2]
[326889422,1715543355303,-411.14943619,0.00026905,2]
[326889423,1715543355325,-411.14943619,0.0002691,2]
[326889424,1715543355345,-719.26262995,0.0002695,2]
[326889425,1715543355481,-500.0,0.00026977,2]
[326889426,1715543355502,-500.0,0.00026977,2]
[326889427,1715543355524,-500.0,0.00026977,2]
[326889428,1715543355547,-500.0,0.00026977,2]
[326889429,1715543355568,-500.0,0.00026977,2]
[326889430,1715543355589,-500.0,0.00026977,2]
[326889431,1715543355613,-500.0,0.00026977,2]
[326889432,1715543355633,-500.0,0.00026977,2]
[326889433,1715543355654,-500.0,0.00026977,2]
[326889434,1715543355675,-500.0,0.00026977,2]
[326889435,1715543355695,-500.0,0.00026977,2]
[326889436,1715543355716,-500.0,0.00026977,2]
[326889437,1715543355736,-500.0,0.00026977,2]
[326889438,1715543355757,-638.1520662,0.00026977,2]
[326889439,1715543355780,-500.0,0.00026977,2]
[326889440,1715543355803,-500.0,0.00026977,2]
[326889441,1715543355824,-500.0,0.00026977,2]
[326889442,1715543355843,-500.0,0.00026977,2]
[326889443,1715543355867,-212.81267864,0.00026977,2]
[326889444,1715543357129,-287.18732136,0.00026977,2]
[326889445,1715543357149,-500.0,0.00026977,2]
[326889446,1715543357169,-500.0,0.00026977,2]
[326889447,1715543357188,-238.99661919,0.00026977,2]
[326889448,1715543357208,-500.0,0.00026977,2]
[326889449,1715543357228,-500.0,0.00026977,2]
[326889450,1715543357247,-500.0,0.00026977,2]
[326889451,1715543357267,-500.0,0.00026977,2]
[326889452,1715543357286,-500.0,0.00026977,2]
[326889453,1715543357306,-500.0,0.00026977,2]
[326889454,1715543357324,-500.0,0.00026977,2]
[326889455,1715543357344,-500.0,0.00026977,2]
[326889456,1715543357363,-500.0,0.00026977,2]
[326889457,1715543357383,-500.0,0.00026977,2]
[326889458,1715543357402,-500.0,0.00026977,2]
[326889459,1715543357422,-500.0,0.00026977,2]
[326889460,1715543357441,-500.0,0.00026977,2]
[326889461,1715543357460,-165.92549558,0.00026977,2]
[326889462,1715543357481,-500.0,0.00026977,2]
[326889463,1715543357502,-500.0,0.00026977,2]
[326889464,1715543357523,-500.0,0.00026977,2]
[326889465,1715543357544,-500.0,0.00026977,2]
[326889466,1715543357566,-500.0,0.00026977,2]
[326889467,1715543357587,-500.0,0.00026977,2]
[326889468,1715543357609,-500.0,0.00026977,2]
[326889469,1715543357629,-369.98254166,0.00026977,2]
[326889470,1715543357650,-500.0,0.00026977,2]
[326889471,1715543357671,-500.0,0.00026977,2]
[326889472,1715543357691,-500.0,0.00026977,2]
[326889473,1715543357715,-500.0,0.00026977,2]
[326889474,1715543357734,-500.0,0.00026977,2]
[326889475,1715543357755,-500.0,0.00026977,2]
[326889476,1715543357774,-500.0,0.00026977,2]
[326889477,1715543357793,-500.0,0.00026977,2]
[326889478,1715543357815,-306.26247385,0.00026977,2]
[326889479,1715543357839,-500.0,0.00026977,2]
[326889480,1715543357867,-500.0,0.00026977,2]
[326889481,1715543357888,-500.0,0.00026977,2]
[326889482,1715543357909,-500.0,0.00026977,2]
[326889483,1715543357928,-500.0,0.00026977,2]
[326889484,1715543357947,-500.0,0.00026977,2]
[326889485,1715543357968,-500.0,0.00026977,2]
[326889486,1715543357987,-500.0,0.00026977,2]
[326889487,1715543358007,-250.0,0.00026977,2]
[326889488,1715543358028,-446.8341867,0.00026988,2]
[326889489,1715543358051,-11866.55,0.0002699,3]
[326889490,1715543358070,-155.01181241,0.00026999,2]
[326889491,1715543358089,-500.0,0.00026999,2]
[326889492,1715543358108,-427.95781624,0.00026999,2]
[326889493,1715543358127,-500.0,0.00026999,2]
[326889494,1715543358145,-500.0,0.00026999,2]
[326889495,1715543358165,-500.0,0.00026999,2]
[326889496,1715543358184,-439.47486891,0.00026999,2]
[326889497,1715543358202,-500.0,0.00026999,2]
[326889498,1715543358221,-179.12275479,0.00026999,2]
[326889499,1715543358242,-500.0,0.00026999,2]
[326889500,1715543358262,-500.0,0.00026999,2]
[326889501,1715543358281,-300.50511497,0.00026999,2]
[326889502,1715543358300,-329.56699311,0.00026999,2]
[326889503,1715543358320,-500.0,0.00026999,2]
[326889504,1715543358339,-500.0,0.00026999,2]
[326889505,1715543358358,-500.0,0.00026999,2]
[326889506,1715543358377,-500.0,0.00026999,2]
[326889507,1715543358396,-500.0,0.00026999,2]
[326889508,1715543358416,-244.24156638,0.00026999,2]
[326889509,1715543358435,-165.55631727,0.00026999,2]
[326889510,1715543358453,-13465.16101758,0.00027,15]
[326889511,1715543396027,274.052361,0.00025256,2]
[326889512,1715543414774,2087.76390066,0.00025112,2]
[326889513,1715543426564,236.28343154,9.999e-05,2]
[326889519,1715543432468,-594.6934441,0.00026877,2]
[326889521,1715543432477,-246.68966175,0.0002691,2]
[326889523,1715543432487,-296.21394395,0.00026989,2]
[326889525,1715543432496,-500.0,0.00026989,2]
[326889527,1715543432512,-589.58471932,0.00026989,2]
[326889528,1715543432527,-500.0,0.00026989,2]
[326889529,1715543432537,-304.33295769,0.00026989,2]
[326889530,1715543432547,-429.99806018,0.00026989,2]
[326889531,1715543432556,-500.0,0.00026989,2]
[326889532,1715543432566,-209.79467402,0.00026989,2]
[326889533,1715543432575,-5424.24111078,0.0002699,3]
[326889534,1715543432589,-10959.00888922,0.0002699,3]
[326889535,1715543432598,-15797.11,0.0002699,3]
[326889536,1715543432607,-13164.26,0.0002699,3]
[326889537,1715543432617,-10970.21,0.0002699,3]
[326889538,1715543432627,-155.04184907,0.00026998,2]
[326889539,1715543432638,-447.34798474,0.00026998,2]
[326889540,1715543432648,-6748.29133563,0.00026998,2]
[326889541,1715543432657,-291.62037268,0.00026999,2]
[326889542,1715543432666,-3019.0354809,0.00027,15]
[326889543,1715543432678,-6193.82153991,0.00027,15]
[326889544,1715543432749,694.6327429,0.00025256,2]
[326889597,1715543440890,-599.80013693,0.0002699,3]
[326889598,1715543441141,-1696.37969746,0.0002699,3]
[326889599,1715543441153,-6845.66016561,0.0002699,3]
[326889600,1715543441162,-148305.9299846,0.00027,15]
[326889653,1715543451468,3458.80437389,0.00020913,2]
[326889663,1715543481032,1895.4873316,0.00020913,2]
[326889664,1715543494248,958.93373854,0.000249,2]
[326889665,1715543530855,24900.0,0.00025286,2]
[326889669,1715543577741,7887.74919876,9.999e-05,2]
[326889670,1715543587557,330.6132766,9.999e-05,2]
[326889671,1715543670061,187.816667,0.00022901,2]
[326889672,1715544043744,618.583223,0.00022705,2]
[326889673,1715544047725,-2526.62599706,0.00044707,120]
[326889674,1715544049299,59336.07404587,0.00020913,2]
[326889675,1715544057022,1514.0561558,0.00022635,2]
[326889676,1715544061044,-32846.31429687,0.00027,15]
[326889677,1715544061069,-804.99971339,0.00029997,17]
[326889678,1715544061098,-935.67306823,0.000356,30]
[326889679,1715544061121,-170.090767,0.00035616,120]
[326889680,1715544061144,-309.74071762,0.0004,120]
[326889681,1715544061167,-319.89591584,0.000419,39]
[326889682,1715544061190,-3090.71087526,0.00043014,21]
[326889683,1715544061214,-153.85532515,0.00045957,30]
[326889684,1715544061237,-1178.61555565,0.000467,30]
[326889685,1715544061260,-226.504,0.00052545,120]
[326889686,1715544061282,-250.0,0.00052545,120]
[326889687,1715544061305,-169.7973437,0.00052576,30]
[326889688,1715544061327,-170.090767,0.00053425,120]
[326889690,1715544103003,185.595507,0.00022384,2]
[326889691,1715544108159,3000.0,0.00022867,2]
[326889692,1715544115217,225.0,0.00021918,2]
[326889694,1715544209953,834.50840127,0.00020913,2]
[326889695,1715544290275,447.34798474,0.00020913,2]
[326889696,1715544316239,1349.05891759,0.00020913,2]
[326889697,1715544439147,-250.0,0.00023067,2]
[326889698,1715544439168,-163.457411,0.00023562,2]
[326889699,1715544439188,-162.498016,0.00023562,2]
[326889700,1715544439208,-185.595507,0.0002391,2]
[326889701,1715544439228,-44.45712726,0.0002407,2]
[326889702,1715544475563,154.7215013,0.00020913,2]
[326889703,1715544520866,154.7215013,9.999e-05,2]
[326889704,1715544525829,154.7215013,0.00020913,2]
[326889705,1715544530114,154.7215013,0.00020913,2]
[326889706,1715544544064,233.52755759,0.00020913,2]
[326889707,1715544544853,155.32212661,0.00020913,2]
[326889708,1715544545696,309.16525382,0.00023,2]
[326889709,1715544547762,154.72151363,0.00020913,2]
[326889710,1715544549177,-309.291611,0.0002301,2]
[326889711,1715544549198,-405.7809347,0.0002301,2]
[326889712,1715544549220,-24900.0,0.00023262,2]
[326889713,1715544549241,-163.96567727,0.00024184,2]
[326889714,1715544549263,-4553.0736104,0.00024311,2]
[326889715,1715544549284,-189.39960416,0.000248,2]
[326889716,1715544549307,-527.71870107,0.00024898,2]
[326889717,1715544549335,-444.10107647,0.00024899,2]
[326889718,1715544549360,-500.0,0.00024899,2]
[326889719,1715544549383,-311.51892276,0.00024899,2]
[326889720,1715544549405,-500.0,0.00024899,2]
[326889721,1715544549427,-500.0,0.00024899,2]
[326889722,1715544549450,-500.0,0.00024899,2]
[326889723,1715544549472,-500.0,0.00024899,2]
[326889724,1715544549493,-500.0,0.00024899,2]
[326889725,1715544549525,-500.0,0.00024899,2]
[326889726,1715544549552,-500.0,0.00024899,2]
[326889727,1715544549574,-500.0,0.00024899,2]
[326889728,1715544549597,-575.0,0.00024899,2]
[326889729,1715544549620,-500.0,0.00024899,2]
[326889730,1715544549642,-500.0,0.00024899,2]
[326889731,1715544549663,-500.0,0.00024899,2]
[326889732,1715544549685,-250.0,0.00024899,2]
[326889733,1715544549708,-359.99819038,0.00024899,2]
[326889734,1715544549731,-491.83476372,0.000249,2]
[326889735,1715544549752,-1603.59013923,0.000249,2]
[326889736,1715544549773,-8153.54087038,0.000249,2]
[326889737,1715544550211,392.16569801,0.00020913,2]
[326889738,1715544552377,203.75623917,0.00020913,2]
[326889739,1715544552533,154.7215013,0.00020913,2]
[326889740,1715544555975,155.16433953,0.00020913,2]
[326889741,1715544556998,234.58785547,0.00020913,2]
[326889742,1715544557124,-189.39960416,0.00023162,2]
[326889743,1715544557144,-331.40858303,0.00025,2]
[326889744,1715544557168,-185.595507,0.00025435,2]
[326889745,1715544557188,-186.62571484,0.00026989,2]
[326889746,1715544557208,-236.07687408,0.00026989,2]
[326889747,1715544557228,-642.00061152,0.0002711,2]
[326889748,1715544557251,-309.42755979,0.0002739,2]
[326889749,1715544558110,-844.78353846,0.00029,2]
[326889750,1715544558131,-1603.59013923,0.000299,2]
[326889751,1715544558151,-398.87009793,0.00029985,2]
[326889752,1715544558171,-500.0,0.00029985,2]
[326889753,1715544558191,-500.0,0.00029985,2]
[326889754,1715544558211,-299.66689518,0.00029985,2]
[326889755,1715544558230,-291.05260919,0.00029985,2]
[326889756,1715544558250,-173.27246991,0.00029985,2]
[326889757,1715544558269,-1348.16602405,0.00029985,2]
[326889758,1715544558289,-308.86185965,0.00029985,2]
[326889759,1715544558308,-230.418329,0.00029985,2]
[326889760,1715544558334,-24621.49573826,0.00029986,21]
[326889761,1715544558353,-979.32343914,0.00029988,3]
[326889762,1715544562132,281.12635245,0.00020913,2]
[326889763,1715544575112,2067.8077144,0.00020913,2]
[326889764,1715544582084,281.12635245,0.00020913,2]
[326889765,1715544586841,447.34798474,0.00025204,2]
[326889766,1715544593975,156.14987174,0.00020913,2]
[326889767,1715544600091,416.29136275,0.00020913,2]
[326889768,1715544604355,194.23254452,0.00020913,2]
[326889769,1715544608728,400.28835833,0.00025,2]
[326889770,1715544608964,273.67256523,0.00020913,2]
[326889771,1715544614102,158.29939173,0.00020913,2]
[326889772,1715544628443,167.20514148,0.00025,2]
[326889773,1715544629552,172.794403,0.00027012,2]
[326889794,1715544631757,-332.38819351,0.00029899,2]
[326889795,1715544631814,-15.6159195,0.00029899,2]
[326889796,1715544631825,-462.75793672,0.00029899,2]
[326889797,1715544631836,-154.7215013,0.00029984,2]
[326889798,1715544631848,-154.73694719,0.00029984,2]
[326889799,1715544631859,-51.28145215,0.00029988,3]
[326889800,1715544631876,-9079.65854785,0.00029988,3]
[326889801,1715544631887,-10957.12,0.00029989,3]
[326889802,1715544631898,-692.44962681,0.00029995,2]
[326889803,1715544631909,-285.95327221,0.00029995,2]
[326889804,1715544631921,-186.94483115,0.00029996,2]
[326889805,1715544631932,-439.50845492,0.00029996,2]
[326889806,1715544631945,-490.90185357,0.00029996,4]
[326889807,1715544631957,-484.08142548,0.00029996,2]
[326889808,1715544631968,-162.50153732,0.00029996,2]
[326889809,1715544631981,-519.11278913,0.00029996,2]
[326889810,1715544631991,-220.69308314,0.00029996,2]
[326889811,1715544632003,-154.76786057,0.00029996,2]
[326889812,1715544632014,-492.31289669,0.00029996,2]
[326889813,1715544632025,-157.27710398,0.00029996,2]
[326889814,1715544632036,-346.97520054,0.00029996,2]
[326889815,1715544632047,-279.81654273,0.00029996,7]
[326889816,1715544632059,-284.32906716,0.00029996,2]
[326889817,1715544632070,-631.41143464,0.00029996,2]
[326889818,1715544632080,-155.82787014,0.00029996,2]
[326889819,1715544632091,-376.65300901,0.00029996,2]
[326889820,1715544632102,-624.25106707,0.00029996,2]
[326889821,1715544632113,-330.15085178,0.00029996,2]
[326889822,1715544632125,-157.22766132,0.00029996,2]
[326889823,1715544632135,-155.08229322,0.00029996,2]
[326889824,1715544632146,-409.89041285,0.00029996,2]
[326889825,1715544632156,-154.76784823,0.00029996,2]
[326889826,1715544632168,-280.59869427,0.00029996,2]
[326889827,1715544632178,-260.5,0.00029996,2]
[326889828,1715544632187,-186.62571484,0.00029996,2]
[326889829,1715544632197,-238.51524987,0.00029996,2]
[326889830,1715544632206,-286.32439961,0.00029996,2]
[326889831,1715544632217,-380.99762848,0.00029996,2]
[326889832,1715544632228,-221.32225344,0.00029996,2]
[326889833,1715544632238,-233.28470073,0.00029996,2]
[326889834,1715544632249,-237.77738276,0.00029996,2]
[326889835,1715544632259,-399.93121533,0.00029996,2]
[326889836,1715544632270,-309.81670716,0.00029996,2]
[326889837,1715544632280,-19180.69214996,0.00029997,2]
[326889838,1715544632290,-816.97434546,0.00029998,2]
[326889839,1715544632300,-1839.67573824,0.00029998,2]
[326889840,1715544632311,-672.76402872,0.00029998,2]
[326889920,1715544640188,-4185.78401955,0.00029988,3]
[326889921,1715544640201,-447.09108572,0.00029988,3]
[326889922,1715544642098,206.96693214,0.00020913,2]
[326889973,1715544642777,-1008.36263068,0.00029888,2]
[326890022,1715544655853,770.26830404,0.00026996,5]
[326890023,1715544683198,934.79634123,0.00014,2]
[326890024,1715544690934,894.8510247,0.00020913,2]
[326890025,1715544694336,200.0,0.0002558,15]
[326890027,1715544699371,584.53004641,0.00027897,2]
[326890028,1715544700661,1337.31788699,9.999e-05,2]
[326890029,1715544718598,512.19242406,0.00020913,2]
[326890030,1715544719175,154.7215013,0.00026996,2]
[326890031,1715544737101,209.67235114,0.00026996,2]
[326890032,1715544751871,62544.46430322,0.00020913,2]
[326890033,1715544753868,157.22766132,0.00020913,2]
[326890034,1715544756559,230.50228992,0.00020913,2]
[326890035,1715544757857,52968.9807794,0.00020913,2]
[326890036,1715544758070,238.51524987,0.00020913,2]
[326890038,1715544759555,366.43327169,0.00020913,2]
[326890039,1715544760902,2105.38616566,0.00020913,2]
[326890040,1715544760992,889.8572113,0.00020913,7]
[326890041,1715544762062,3727.13060983,0.00020913,2]
[326890042,1715544763888,19402.55268378,0.00020913,2]
[326890043,1715544766311,154.7215013,0.00020913,2]
[326890044,1715544770414,492.31289669,0.00020913,2]
[326890045,1715544770447,5981.17563923,0.00020913,2]
[326890046,1715544773878,187.76385191,0.00020913,2]
[326890047,1715544776097,238.51524987,0.00020913,2]
[326890048,1715544778568,309.41189456,0.00020913,2]
[326890049,1715544784422,323.11679326,0.00020913,2]
[326890050,1715544784454,23436.84806962,0.00020913,2]
[326890051,1715544794082,361.05936987,0.00020913,2]
[326890052,1715544823737,186.62571484,0.00020913,2]
[326890053,1715544832494,16132.1306259,0.00020913,2]
[326890054,1715544832798,154.76784823,0.00020913,2]
[326890055,1715544854422,16132.1306259,0.00020913,2]
[326890056,1715544876428,5743.70672853,0.00020913,2]
[326890057,1715544911451,-802.10050588,0.000275,17]
[326890058,1715544911476,-6836.97,0.0002999,3]
[326890059,1715544911509,-5697.47,0.0002999,3]
[326890060,1715544911533,-4747.89,0.0002999,3]
[326890061,1715544911562,-12310.74786913,0.0003,11]
[326890062,1715544911587,-214.14740951,0.0003,4]
[326890063,1715544911610,-154.75239617,0.0003,4]
[326890064,1715544911635,-169.6439168,0.0003,4]
[326890065,1715544911657,-1438.69041944,0.0003,4]
[326890066,1715544911680,-447.9223528,0.00032,4]
[326890067,1715544911702,-10689.38493145,0.00034,5]
[326890068,1715544911724,-467.2954807,0.00034,4]
[326890069,1715544911748,-1000.0,0.000348,3]
[326890070,1715544911770,-1000.0,0.000348,3]
[326890071,1715544911794,-159.65331041,0.00035,30]
[326890072,1715544911817,-322.34219314,0.00035,30]
[326890073,1715544911844,-267.25191236,0.00035,4]
[326890074,1715544911867,-5899.18255005,0.00035,4]
[326890075,1715544911890,-309.74071762,0.0004,120]
[326890076,1715544911915,-336.1544,0.00040872,30]
[326890077,1715544911938,-528.12267588,0.000419,39]
[326890078,1715544911962,-528.12267583,0.000419,39]
[326890079,1715544911984,-528.12267583,0.000419,39]
[326890080,1715544912009,-528.12267583,0.000419,39]
[326890081,1715544912037,-528.12267583,0.000419,39]
[326890082,1715544912059,-528.12267583,0.000419,39]
[326890083,1715544912201,-528.12267583,0.000419,39]
[326890084,1715544912224,-528.12267583,0.000419,39]
[326890085,1715544912246,-528.12267583,0.000419,39]
[326890086,1715544912268,-528.12267583,0.000419,39]
[326890087,1715544912291,-500.0,0.00042872,30]
[326890088,1715544912313,-4935.96486209,0.000431,7]
[326890089,1715544912336,-153.85532515,0.0004426,30]
[326890090,1715544912359,-151.0,0.00045,120]
[326890091,1715544912382,-155.22441242,0.000459,4]